bitfinex/quotes_BTCUSD_20241216
["timestamp","ask_amount","ask_price","bid_price","bid_amount"]
[1734386755864,0.0952907,105900.0,105890.0,1.25595996]
[1734386757536,0.0952907,105900.0,105890.0,1.1294813]
[1734386758365,0.0952907,105900.0,105890.0,0.96084308]
[1734386759352,0.0954635,105900.0,105890.0,0.96084308]
[1734386760098,0.0954635,105900.0,105890.0,0.89934308]
[1734386760217,0.0954635,105900.0,105890.0,0.88048908]
[1734386761380,0.0954635,105900.0,105890.0,0.76516208]
[1734386761939,0.0954635,105900.0,105890.0,0.87252765]
[1734386762137,0.0954635,105900.0,105890.0,0.99934995]
[1734386763502,0.0954635,105900.0,105890.0,0.87252765]
[1734386764650,0.1704635,105900.0,105890.0,0.61546365]
[1734386764858,0.1704635,105900.0,105890.0,0.44693571]
[1734386765069,0.6704635,105900.0,105890.0,0.44693571]
[1734386765273,0.6704635,105900.0,105880.0,0.24422769]
[1734386765471,0.6704635,105900.0,105890.0,0.15]
[1734386766776,0.6694635,105900.0,105890.0,0.15]
[1734386767199,0.6704635,105900.0,105890.0,0.15]
[1734386767509,0.6694635,105900.0,105890.0,0.15]
[1734386767915,0.6704635,105900.0,105890.0,0.15]
[1734386768796,0.6704635,105900.0,105880.0,0.23464998]
[1734386768967,0.0787,105890.0,105880.0,0.23464998]
[1734386769176,0.1729907,105890.0,105880.0,0.23464998]
[1734386770370,0.1739907,105890.0,105880.0,0.1500864]
[1734386771534,0.3164665,105890.0,105880.0,8.64e-05]
[1734386771746,0.2457907,105890.0,105880.0,8.64e-05]
[1734386771955,0.33060471,105890.0,105880.0,8.64e-05]
[1734386772161,0.77066444,105890.0,105880.0,8.64e-05]
[1734386772368,0.62716069,105890.0,105880.0,8.64e-05]
[1734386773027,0.75416258,105890.0,105880.0,8.64e-05]
[1734386773461,0.84733784,105890.0,105880.0,8.64e-05]
[1734386773676,0.93295071,105890.0,105880.0,8.64e-05]
[1734386774517,0.93224156,105890.0,105880.0,8.64e-05]
[1734386776292,0.55149296,105890.0,105880.0,8.64e-05]
[1734386777477,0.42457676,105890.0,105880.0,8.64e-05]
[1734386779464,0.33996596,105890.0,105880.0,8.64e-05]
[1734386782479,0.34013876,105890.0,105880.0,8.64e-05]
[1734386787684,0.2459635,105890.0,105880.0,8.64e-05]
[1734386798318,0.33029782,105890.0,105880.0,8.64e-05]
[1734386798530,0.33032999,105890.0,105880.0,8.64e-05]
[1734386799161,0.42947999,105890.0,105880.0,8.64e-05]
[1734386799365,0.55602973,105890.0,105880.0,8.64e-05]
[1734386799593,0.81893798,105890.0,105880.0,8.64e-05]
[1734386800446,0.148,105880.0,105870.0,0.00015609]
[1734386800644,0.2422907,105880.0,105870.0,0.00015609]
[1734386801204,0.32665719,105880.0,105870.0,0.00015609]
[1734386801643,0.45320693,105880.0,105870.0,0.00015609]
[1734386801845,0.62193992,105880.0,105870.0,0.00015609]
[1734386803024,0.62207645,105880.0,105870.0,0.00015609]
[1734386804246,0.83306854,105880.0,105870.0,0.00015609]
[1734386805280,0.74867171,105880.0,105870.0,0.00015609]
[1734386805879,0.78765133,105880.0,105870.0,0.00015609]
[1734386808348,0.88182659,105880.0,105870.0,0.00015609]
[1734386809168,0.78765133,105880.0,105870.0,0.00015609]
[1734386809576,0.66105608,105880.0,105870.0,0.00015609]
[1734386811718,0.49226241,105880.0,105870.0,0.00015609]
[1734386812122,0.49326241,105880.0,105870.0,0.00015609]
[1734386812464,0.49363519,105880.0,105870.0,0.00015609]
[1734386812668,0.5887123,105880.0,105870.0,0.00015609]
[1734386813088,0.69070773,105880.0,105870.0,0.00015609]
[1734386814376,0.7329807,105880.0,105870.0,0.00015609]
[1734386817423,0.73340625,105880.0,105870.0,0.00015609]
[1734386817858,0.73357905,105880.0,105870.0,0.00015609]
[1734386819651,0.73073362,105880.0,105870.0,0.00015609]
[1734386821250,0.73070757,105880.0,105870.0,0.00015609]
[1734386821867,0.46638046,105880.0,105870.0,0.00015609]
[1734386822075,0.46638046,105880.0,105830.0,0.00047432]
[1734386822076,1.0,105860.0,105830.0,0.00047432]
[1734386822407,0.0942907,105850.0,105830.0,0.00047432]
[1734386823004,0.0942907,105850.0,105820.0,0.27263658]
[1734386823185,0.0942907,105850.0,105830.0,1.112546]
[1734386823533,0.0942907,105850.0,105830.0,0.909375]
[1734386824855,0.0942907,105850.0,105840.0,0.15]
[1734386825053,0.0952907,105850.0,105820.0,0.27280678]
[1734386825371,0.0952907,105850.0,105840.0,0.15]
[1734386826086,0.0942907,105850.0,105840.0,0.15]
[1734386826438,0.13358632,105850.0,105830.0,0.1952]
[1734386827057,0.0952907,105850.0,105830.0,0.1952]
[1734386828704,0.0942907,105850.0,105830.0,0.1952]
[1734386829032,0.0952907,105850.0,105830.0,0.1952]
[1734386829523,0.0942907,105850.0,105830.0,0.1952]
[1734386829854,0.0952907,105850.0,105830.0,0.1952]
[1734386830485,0.0952907,105850.0,105830.0,0.1952864]
[1734386831148,0.0952907,105850.0,105840.0,0.0486]
[1734386831852,0.0942907,105850.0,105840.0,0.0486]
[1734386832068,0.0952907,105850.0,105840.0,0.0486]
[1734386832736,0.0942907,105850.0,105840.0,0.0486]
[1734386833234,0.0952907,105850.0,105840.0,0.0486]
[1734386836584,0.0952907,105850.0,105840.0,0.23698221]
[1734386840370,0.0952907,105850.0,105840.0,0.08698221]
[1734386842534,0.001,105850.0,105840.0,1.03867307]
[1734386842721,0.0001728,105880.0,105850.0,0.15]
[1734386842958,0.0944635,105880.0,105860.0,1.43131452]
[1734386843190,0.0944635,105880.0,105870.0,1.57707]
[1734386843669,0.0944635,105880.0,105870.0,1.60408388]
[1734386844356,0.0944635,105880.0,105870.0,1.60425408]
[1734386845818,0.0001728,105880.0,105870.0,1.65075408]
[1734386846348,0.0001728,105880.0,105870.0,1.7352165]
[1734386846528,0.0001728,105880.0,105870.0,1.65075408]
[1734386846729,0.0001728,105880.0,105870.0,0.22368408]
[1734386846932,0.0001728,105880.0,105870.0,1.65075408]
[1734386847156,0.0001728,105880.0,105870.0,1.7352165]
[1734386847333,0.0001728,105880.0,105870.0,1.68928224]
[1734386848402,0.0001728,105880.0,105870.0,1.77374466]
[1734386848606,0.0001728,105880.0,105870.0,1.68928224]
[1734386854375,0.0001728,105880.0,105870.0,1.714326]
[1734386861102,0.0001728,105880.0,105870.0,1.8086167]
[1734386863131,0.0001728,105880.0,105870.0,1.78110683]
[1734386868047,0.0001728,105890.0,105870.0,2.80410683]
[1734386868239,0.0001728,105890.0,105880.0,1.71890484]
[1734386868465,0.0001728,105890.0,105880.0,1.7179607]
[1734386870735,0.0001728,105890.0,105880.0,2.2409607]
[1734386871782,0.0001728,105900.0,105880.0,2.2409607]
[1734386871987,0.0001728,105900.0,105890.0,1.62461407]
[1734386872241,0.0001728,105900.0,105890.0,1.7179607]
[1734386876169,0.0001728,105900.0,105890.0,2.7409607]
[1734386877284,0.0001728,105920.0,105900.0,0.15]
[1734386877506,0.0001728,105920.0,105910.0,1.57801399]
[1734386877711,0.0001728,105920.0,105910.0,1.57707]
[1734386877875,0.0001728,105920.0,105910.0,1.7208607]
[1734386878829,0.0007398,105920.0,105910.0,1.6713607]
[1734386878967,0.0007398,105920.0,105910.0,1.7090717]
[1734386879422,0.0007398,105920.0,105910.0,1.73411546]
[1734386883126,0.0007398,105920.0,105910.0,1.76254525]
[1734386884291,0.0007398,105920.0,105910.0,1.55003207]
[1734386884492,0.0007398,105920.0,105910.0,1.55003225]
[1734386885127,0.0007398,105920.0,105910.0,2.12153225]
[1734386885275,0.082,105950.0,105920.0,0.673]
[1734386885472,0.08210705,105950.0,105940.0,0.15]
[1734386885698,0.08210705,105950.0,105940.0,1.364557]
[1734386887212,0.08210705,105950.0,105930.0,0.2442907]
[1734386887417,0.08210705,105950.0,105940.0,1.36550077]
[1734386887620,0.08210705,105950.0,105940.0,1.364557]
[1734386891091,0.08227965,105950.0,105940.0,1.364557]
[1734386891689,0.08227965,105950.0,105940.0,1.39309273]
[1734386894457,0.08227965,105950.0,105940.0,1.41813649]
[1734386895637,0.08227965,105950.0,105940.0,1.51242719]
[1734386895839,0.00027965,105950.0,105940.0,1.51242719]
[1734386898547,0.05163917,105960.0,105940.0,1.53777515]
[1734386898749,0.05163917,105960.0,105950.0,1.36550064]
[1734386899037,0.05163917,105960.0,105950.0,1.364557]
[1734386899772,0.10023917,105960.0,105950.0,1.364557]
[1734386903271,0.10023917,105960.0,105950.0,0.15]
[1734386903466,0.10023917,105960.0,105950.0,0.15094366]
[1734386903709,0.10023917,105960.0,105950.0,1.36550066]
[1734386903913,0.10023917,105960.0,105950.0,1.364557]
[1734386904492,0.10023917,105960.0,105950.0,1.38960076]
[1734386906411,0.10023917,105960.0,105950.0,0.565834]
[1734386907619,0.10023917,105960.0,105950.0,0.59087776]
[1734386908391,0.0785728,105970.0,105950.0,0.59087776]
[1734386908799,0.0785728,105970.0,105960.0,1.28532]
[1734386909402,0.0785728,105970.0,105960.0,1.31036376]
[1734386910803,0.1257728,105970.0,105960.0,1.124874]
[1734386911007,0.1257728,105970.0,105960.0,0.273136]
[1734386915705,0.1257728,105970.0,105960.0,0.29686373]
[1734386916343,0.1257728,105970.0,105960.0,0.32126481]
[1734386916935,0.1257728,105970.0,105960.0,0.29686373]
[1734386917477,0.1257728,105970.0,105960.0,0.32126481]
[1734386919519,0.0785728,105970.0,105960.0,0.32126481]
[1734386920713,0.0785728,105970.0,105960.0,0.29686373]
[1734386922420,0.0785728,105970.0,105960.0,1.38828473]
[1734386924073,0.0785728,105970.0,105960.0,0.60450573]
[1734386924487,0.2181635,105970.0,105940.0,0.23128092]
[1734386924867,0.0944635,105970.0,105950.0,0.450215]
[1734386925031,0.0942907,105960.0,105940.0,0.00010705]
[1734386925233,0.2194907,105960.0,105950.0,0.336725]
[1734386925584,0.2194907,105960.0,105950.0,0.277327]
[1734386925788,0.129,105950.0,105940.0,0.00010705]
[1734386926003,0.2232907,105950.0,105940.0,0.00010705]
[1734386926198,0.129,105940.0,105920.0,8.63e-05]
[1734386926419,0.1746907,105930.0,105920.0,8.63e-05]
[1734386927406,0.2211907,105930.0,105920.0,8.63e-05]
[1734386928195,0.7211907,105930.0,105920.0,8.63e-05]
[1734386929800,0.72216261,105930.0,105920.0,8.63e-05]
[1734386933832,0.7211907,105930.0,105920.0,8.63e-05]
[1734386936460,0.2211907,105930.0,105920.0,8.63e-05]
[1734386936663,0.2211907,105930.0,105920.0,0.1500863]
[1734386937798,0.2211907,105930.0,105920.0,8.63e-05]
[1734386938394,0.2211907,105930.0,105920.0,0.3230033]
[1734386938817,0.2211907,105930.0,105920.0,0.1500863]
[1734386939280,0.2211907,105930.0,105920.0,1.3646433]
[1734386939481,0.2211907,105930.0,105920.0,1.2357823]
[1734386939740,0.2211907,105930.0,105920.0,1.2169333]
[1734386940396,0.2211907,105930.0,105920.0,0.8930253]
[1734386941685,0.2211907,105930.0,105920.0,0.66339845]
[1734386941891,0.2211907,105930.0,105900.0,8.63e-05]
[1734386942239,0.2211907,105930.0,105910.0,1.135017]
[1734386942875,0.2211907,105930.0,105920.0,0.733576]
[1734386943081,0.2211907,105930.0,105910.0,1.094739]
[1734386943306,0.2211907,105930.0,105910.0,1.025703]
[1734386943522,0.2211907,105930.0,105910.0,1.135017]
[1734386943953,0.2211907,105930.0,105920.0,0.15]
[1734386944156,0.2211907,105930.0,105920.0,0.903595]
[1734386944348,0.2211907,105930.0,105900.0,8.63e-05]
[1734386944482,0.2211907,105930.0,105920.0,0.15]
[1734386944898,0.2211907,105930.0,105920.0,0.883533]
[1734386948709,0.2211907,105930.0,105920.0,0.1500864]
[1734386948897,0.2213635,105930.0,105920.0,8.64e-05]
[1734386952215,0.2213635,105930.0,105920.0,0.1500864]
[1734386952423,0.2213635,105930.0,105920.0,0.5125434]
[1734386952621,0.2213635,105930.0,105920.0,0.8251264]
[1734386953850,0.2213635,105930.0,105920.0,0.5165324]
[1734386955416,0.0805728,105930.0,105920.0,0.5165324]
[1734386964272,0.0001728,105930.0,105920.0,0.53959654]
[1734386964615,0.0001728,105930.0,105920.0,0.5397106]
[1734386964818,0.0001728,105930.0,105920.0,0.51676052]
[1734386965017,0.0001728,105930.0,105920.0,0.5165324]
[1734386966644,0.0001728,105930.0,105920.0,8.64e-05]
[1734386966852,0.0001728,105930.0,105920.0,1.2851034]
[1734386968173,0.0001728,105930.0,105920.0,1.11753122]
[1734386968387,0.0001728,105930.0,105920.0,1.117532]
[1734386971601,0.0001728,105930.0,105920.0,1.1176184]
[1734386973364,0.0001728,105930.0,105920.0,1.11785234]
[1734386973565,0.0001728,105930.0,105920.0,1.14091648]
[1734386976802,0.0001728,105930.0,105920.0,1.22517846]
[1734386977011,0.0001728,105930.0,105920.0,1.22494452]
[1734386978277,0.0001728,105930.0,105920.0,1.35133749]
[1734386979100,0.0001728,105930.0,105920.0,1.32827335]
[1734386981377,0.0001728,105930.0,105920.0,1.49679731]
[1734386981553,0.0001728,105930.0,105920.0,1.32827335]
[1734386982424,0.0752728,105930.0,105920.0,0.75444238]
[1734386982835,0.0001728,105930.0,105920.0,0.82862119]
[1734386983241,0.0001728,105930.0,105920.0,0.80142119]
[1734386983663,0.0001728,105930.0,105920.0,0.75462119]
[1734386984847,0.0001728,105930.0,105920.0,0.75444651]
[1734386986264,0.1264728,105930.0,105920.0,0.71111051]
[1734386990879,0.1264728,105930.0,105920.0,0.23435251]
[1734386991091,0.1264728,105930.0,105920.0,1.20188451]
[1734386992616,0.1264728,105930.0,105920.0,1.2019177]
[1734386993246,0.1264728,105930.0,105920.0,1.32836666]
[1734386997026,0.1264728,105930.0,105920.0,1.3514308]
[1734386997233,0.0001728,105930.0,105920.0,1.52002941]
[1734386997484,0.0001728,105930.0,105920.0,1.73111746]
[1734386997682,0.0001728,105930.0,105920.0,1.64676962]
[1734386997890,0.0001728,105930.0,105920.0,1.62370548]
[1734386998038,0.0001728,105930.0,105920.0,1.49718504]
[1734386998442,0.0001728,105930.0,105920.0,1.62370548]
[1734386998845,0.0001728,105930.0,105920.0,1.70807886]
[1734386999554,0.0001728,105930.0,105920.0,1.62370548]
[1734387001617,0.0001728,105930.0,105920.0,0.65617348]
[1734387001824,0.0001728,105930.0,105920.0,1.62370548]
[1734387002459,0.0001728,105930.0,105920.0,1.40912111]
[1734387003676,0.0001728,105930.0,105920.0,1.32470118]
[1734387006364,0.0001728,105930.0,105920.0,1.32478758]
[1734387007598,0.0001728,105930.0,105920.0,1.97017134]
[1734387007745,0.0823,105960.0,105930.0,0.69739262]
[1734387007947,0.0823,105960.0,105950.0,0.15]
[1734387008150,0.0823,105960.0,105950.0,1.29623225]
[1734387008402,0.0823,105960.0,105950.0,1.42284657]
[1734387008838,0.0823,105960.0,105950.0,1.33843702]
[1734387009172,0.0823,105960.0,105950.0,1.42272815]
[1734387010461,0.0823,105960.0,105950.0,1.42247983]
[1734387012409,0.0823,105960.0,105950.0,1.59100554]
[1734387014248,0.0823,105960.0,105950.0,1.42247983]
[1734387015057,0.12062948,105970.0,105950.0,1.42247983]
[1734387015270,0.12062948,105970.0,105960.0,1.117532]
[1734387017869,0.12062948,105970.0,105960.0,1.2118227]
[1734387018085,0.00022948,105970.0,105960.0,1.2118227]
[1734387018267,0.00022948,105970.0,105960.0,1.31866084]
[1734387019117,0.00022948,105970.0,105960.0,1.29600849]
[1734387019555,0.00022948,105970.0,105960.0,1.33234035]
[1734387019769,0.00022948,105970.0,105960.0,1.34335798]
[1734387022254,0.00022948,105970.0,105960.0,1.25917219]
[1734387024094,0.00436288,105970.0,105960.0,1.34335798]
[1734387024303,0.00436288,105970.0,105960.0,1.23651984]
[1734387024713,0.00436288,105970.0,105960.0,1.32070563]
[1734387024907,0.00436288,105970.0,105960.0,1.32048769]
[1734387025293,0.00436288,105970.0,105960.0,1.25917219]
[1734387025494,0.00436288,105970.0,105960.0,1.23651984]
[1734387025678,0.00022948,105970.0,105960.0,1.23651984]
[1734387025904,0.08282948,105970.0,105960.0,1.23651984]
[1734387026078,0.13272948,105970.0,105960.0,0.956918]
[1734387026313,0.1369888,105970.0,105960.0,0.956918]
[1734387040564,0.13272948,105970.0,105960.0,0.956918]
[1734387043981,0.12953668,105970.0,105960.0,0.956918]
[1734387044301,0.12970928,105970.0,105960.0,0.956918]
[1734387044503,0.12970928,105970.0,105960.0,0.15]
[1734387044789,0.12970928,105970.0,105960.0,1.117532]
[1734387046114,0.12970928,105970.0,105960.0,1.064918]
[1734387048164,0.07980928,105970.0,105960.0,1.08222258]
[1734387050002,0.0001726,105970.0,105960.0,1.08222258]
[1734387050195,0.0001726,105970.0,105960.0,1.10487493]
[1734387050551,0.0001726,105970.0,105960.0,1.18909741]
[1734387051113,0.0001726,105970.0,105960.0,1.16644506]
[1734387052243,0.0001726,105970.0,105960.0,1.29277878]
[1734387054222,0.0001726,105970.0,105960.0,1.46197777]
[1734387055218,0.0001726,105970.0,105960.0,1.47187843]
[1734387055425,0.0001726,105970.0,105960.0,1.70550589]
[1734387055625,0.0001726,105970.0,105960.0,1.57892083]
[1734387055927,0.0001726,105970.0,105960.0,1.45242206]
[1734387057987,0.0001726,105970.0,105960.0,2.00552206]
[1734387058188,0.0001726,105970.0,105960.0,2.00532293]
[1734387058361,0.0001726,105970.0,105960.0,2.12617345]
[1734387059528,0.0799864,105990.0,105960.0,2.12617345]
[1734387059760,0.08004307,105990.0,105980.0,0.52938825]
[1734387059934,0.08004307,105990.0,105980.0,1.39052906]
[1734387060183,0.08004307,105990.0,105980.0,1.56853447]
[1734387060410,0.08004307,105990.0,105980.0,1.54798508]
[1734387060615,0.08004307,105990.0,105980.0,0.63306708]
[1734387060824,0.08004307,105990.0,105980.0,1.54798508]
[1734387061049,0.08004307,105990.0,105980.0,1.53857634]
[1734387061453,0.08004307,105990.0,105980.0,1.56853419]
[1734387061605,0.08004307,105990.0,105980.0,1.69495907]
[1734387062145,0.08004307,105990.0,105980.0,1.67440996]
[1734387062684,0.08004307,105990.0,105980.0,1.69495907]
[1734387063324,0.08004307,105990.0,105980.0,1.56853419]
[1734387063521,0.08004307,105990.0,105980.0,1.67433341]
[1734387064441,0.00014307,105990.0,105980.0,1.76831121]
[1734387065630,0.00014307,105990.0,105980.0,1.73821121]
[1734387067499,0.00014307,105990.0,105980.0,1.82238402]
[1734387068402,0.00014307,105990.0,105980.0,1.61161277]
[1734387068681,0.00014307,105990.0,105980.0,1.56421277]
[1734387069714,0.00014307,105990.0,105980.0,1.57862029]
[1734387072128,0.00014307,105990.0,105980.0,1.57815046]
[1734387072547,0.00014307,105990.0,105980.0,1.56167266]
[1734387073789,0.12714307,105990.0,105980.0,1.38397605]
[1734387074201,0.12714307,105990.0,105980.0,1.25776015]
[1734387074605,0.12714307,105990.0,105980.0,0.34284215]
[1734387074817,0.12714307,105990.0,105980.0,1.25776015]
[1734387076991,0.12714307,105990.0,105980.0,1.2577651]
[1734387081888,0.07964307,105990.0,105980.0,1.3839933]
[1734387082641,0.07964307,105990.0,105980.0,1.16347635]
[1734387084417,0.07964307,105990.0,105980.0,1.18548664]
[1734387084660,0.07964307,105990.0,105980.0,1.16786379]
[1734387084835,0.07964307,105990.0,105980.0,1.18548664]
[1734387085917,0.07964307,105990.0,105980.0,0.27056864]
[1734387086176,0.07964307,105990.0,105980.0,1.18548664]
[1734387087230,0.07964307,105990.0,105980.0,1.16786379]
[1734387087381,0.07964307,105990.0,105980.0,1.18548664]
[1734387087835,0.07964307,105990.0,105980.0,1.16786379]
[1734387088203,0.07964307,105990.0,105980.0,1.18548664]
[1734387088407,0.07964307,105990.0,105980.0,1.16786379]
[1734387088640,0.07519249,105990.0,105980.0,1.16786379]
[1734387090396,0.07536509,105990.0,105980.0,1.16786379]
[1734387092126,0.07536509,105990.0,105980.0,1.31051865]
[1734387092329,0.07536509,105990.0,105980.0,1.40480935]
[1734387092688,0.07135523,105990.0,105980.0,1.57311101]
[1734387093931,0.07135523,105990.0,105980.0,1.5566824]
[1734387094777,0.07135523,105990.0,105980.0,1.57402433]
[1734387094943,0.07135523,105990.0,105980.0,1.5566824]
[1734387096243,0.07135523,105990.0,105980.0,1.4898735]
[1734387096603,0.07135523,105990.0,105980.0,1.49035159]
[1734387097148,0.07135523,105990.0,105980.0,1.70107016]
[1734387099268,0.07135523,105990.0,105980.0,1.57463902]
[1734387099994,0.07135523,105990.0,105980.0,1.55729709]
[1734387101357,0.07135523,105990.0,105980.0,1.38880853]
[1734387103259,0.07135523,105990.0,105980.0,1.17808996]
[1734387106261,0.07135523,105990.0,105980.0,1.20108087]
[1734387107666,0.07135523,105990.0,105980.0,1.17808996]
[1734387109246,0.08481699,106020.0,106010.0,0.5]
[1734387109451,0.12507823,106040.0,106030.0,0.15]
[1734387109661,0.11807823,106040.0,106030.0,0.36087741]
[1734387109840,0.11807823,106040.0,106030.0,1.064918]
[1734387110062,0.11807823,106040.0,106030.0,1.14926896]
[1734387110256,0.11807823,106040.0,106030.0,1.064918]
[1734387110778,0.11864541,106040.0,106030.0,1.064918]
[1734387111596,0.11864541,106040.0,106030.0,0.15]
[1734387111806,0.11864541,106040.0,106030.0,1.064918]
[1734387113351,0.11873171,106040.0,106030.0,1.064918]
[1734387116595,0.11873171,106040.0,106030.0,1.07741816]
[1734387125061,0.11873171,106040.0,106030.0,1.07759076]
[1734387129673,0.11873171,106040.0,106030.0,0.88464786]
[1734387129893,0.11873171,106040.0,106030.0,0.88464876]
[1734387131814,0.11873171,106040.0,106030.0,1.03464876]
[1734387132018,0.11873171,106040.0,106030.0,1.06597829]
[1734387133042,0.11873171,106040.0,106030.0,1.0359735]
[1734387133251,0.11873171,106040.0,106030.0,1.03464876]
[1734387136431,0.21302241,106040.0,106030.0,0.88464876]
[1734387136659,0.21302241,106040.0,106030.0,0.0001726]
[1734387137081,0.09494418,106040.0,105990.0,0.00094316]
[1734387137264,0.0463,106020.0,105990.0,0.87291916]
[1734387137503,0.0785,106010.0,106000.0,0.871976]
[1734387137712,0.0785,106010.0,105990.0,0.871976]
[1734387138279,0.0785,106010.0,106000.0,0.15]
[1734387138448,0.0785,106010.0,106000.0,1.021976]
[1734387140204,0.0785,106010.0,106000.0,0.974942]
[1734387142113,0.0785,106010.0,106000.0,0.9900786]
[1734387142671,0.0785,106010.0,106000.0,0.01425884]
[1734387142879,0.0785,106010.0,106000.0,0.99014406]
[1734387143063,0.0785,106010.0,106000.0,0.98920084]
[1734387144659,0.0785,106010.0,106000.0,0.98963972]
[1734387144823,0.0785,106010.0,106000.0,0.98920084]
[1734387147641,0.0751187,106010.0,106000.0,1.00145984]
[1734387147838,0.0751187,106010.0,106000.0,1.00163244]
[1734387148275,0.0751187,106010.0,106000.0,1.08560914]
[1734387148485,0.0751187,106010.0,106000.0,1.00163244]
[1734387149445,0.0751187,106010.0,106000.0,1.08560914]
[1734387149899,0.0751187,106010.0,106000.0,1.09209444]
[1734387150504,0.0751187,106010.0,106000.0,1.2180595]
[1734387152578,0.0751187,106010.0,106000.0,1.21827879]
[1734387153526,0.0751187,106010.0,106000.0,1.38640763]
[1734387153932,0.0751187,106010.0,106000.0,0.56146563]
[1734387154119,0.0751187,106010.0,106000.0,1.38640763]
[1734387157019,0.0751187,106010.0,106000.0,1.59656868]
[1734387157194,0.0751187,106010.0,106000.0,1.38640763]
[1734387157678,0.0463,106020.0,106010.0,0.15]
[1734387157679,0.1261,106020.0,106010.0,0.15]
[1734387158065,0.0798,106020.0,106010.0,1.68786189]
[1734387158197,0.0798,106020.0,106010.0,1.60283895]
[1734387158401,0.0798,106020.0,106010.0,1.47672144]
[1734387159975,0.0798863,106020.0,106010.0,1.47672144]
[1734387162622,0.0798863,106020.0,106010.0,1.46563434]
[1734387162798,0.0798863,106020.0,106010.0,1.60261973]
[1734387162996,0.0798863,106020.0,106010.0,1.6026116]
[1734387170783,0.0790863,106020.0,106010.0,1.6026116]
[1734387170991,8.63e-05,106020.0,106010.0,1.6026116]
[1734387171206,0.00065348,106040.0,106010.0,1.97649385]
[1734387171409,0.00065348,106040.0,106030.0,0.52834746]
[1734387171614,0.00065348,106040.0,106030.0,1.46884438]
[1734387171820,0.00065348,106040.0,106030.0,1.59496445]
[1734387173035,0.00065348,106040.0,106030.0,1.67898552]
[1734387173242,0.00065348,106040.0,106030.0,1.22986321]
[1734387173448,0.00065348,106040.0,106030.0,1.21170621]
[1734387174077,0.07855348,106040.0,106030.0,1.21170621]
[1734387174273,0.07855348,106040.0,106030.0,1.17451799]
[1734387176405,0.07855348,106040.0,106030.0,1.18585333]
[1734387177371,0.00065348,106040.0,106030.0,1.18585333]
[1734387181020,0.00065348,106040.0,106030.0,1.68585333]
[1734387181219,0.00065348,106040.0,106030.0,1.68577487]
[1734387181466,0.00065348,106040.0,106030.0,1.8536601]
[1734387181618,0.00065348,106040.0,106030.0,1.81801749]
[1734387181823,0.00065348,106040.0,106030.0,1.90192999]
[1734387182060,0.00065348,106040.0,106030.0,1.07698799]
[1734387182331,0.00065348,106040.0,106030.0,2.02777521]
[1734387182689,0.00065348,106040.0,106030.0,1.94388175]
[1734387183273,0.00065348,106040.0,106030.0,2.15368792]
[1734387183813,0.00065348,106040.0,106030.0,2.02787403]
[1734387184448,0.00065348,106040.0,106030.0,2.52787403]
[1734387185613,0.0001728,106050.0,106040.0,0.66293622]
[1734387185730,0.0003332,106050.0,106040.0,1.79183365]
[1734387188818,0.0003332,106050.0,106040.0,2.29183365]
[1734387190213,0.0003332,106050.0,106040.0,2.45959077]
[1734387190419,0.0003332,106050.0,106040.0,2.29183365]
[1734387192029,0.0767332,106050.0,106040.0,2.27889743]
[1734387192430,0.0767332,106050.0,106040.0,1.45395543]
[1734387192633,0.0767332,106050.0,106040.0,2.27889743]
[1734387194223,0.0767332,106050.0,106040.0,2.31655843]
[1734387194784,0.0003332,106050.0,106040.0,2.34716474]
[1734387195196,0.0003332,106050.0,106040.0,2.51448825]
[1734387195405,0.0003332,106050.0,106040.0,2.55978825]
[1734387196006,0.0003332,106050.0,106040.0,2.76922616]
[1734387196211,0.0003332,106050.0,106040.0,2.685451]
[1734387196463,0.0003332,106050.0,106040.0,2.76920448]
[1734387197288,0.0003332,106050.0,106040.0,2.685451]
[1734387197492,0.0003332,106050.0,106040.0,2.5597639]
[1734387198024,0.0003332,106050.0,106040.0,2.685451]
[1734387198226,0.0003332,106050.0,106040.0,2.76920979]
[1734387198453,0.0003332,106050.0,106040.0,2.72390178]
[1734387198854,0.0003332,106050.0,106040.0,2.72683842]
[1734387199351,0.0003332,106050.0,106040.0,2.72684197]
[1734387199935,0.0003332,106050.0,106040.0,2.64308764]
[1734387205669,0.0003332,106050.0,106040.0,1.81814564]
[1734387206075,0.0003332,106050.0,106040.0,2.64308764]
[1734387206274,0.0003332,106050.0,106040.0,2.51742489]
[1734387206583,0.0003332,106050.0,106040.0,2.51759769]
[1734387206780,0.0003332,106050.0,106040.0,2.32517976]
[1734387207012,0.0003332,106050.0,106040.0,1.97592597]
[1734387208294,0.0003332,106050.0,106040.0,2.1434763]
[1734387208915,0.07579058,106060.0,106050.0,0.15]
[1734387209110,0.07579058,106060.0,106050.0,1.15398377]
[1734387209253,0.07579058,106060.0,106050.0,1.15304105]
[1734387209662,0.07579058,106060.0,106050.0,1.18364736]
[1734387210540,0.07579058,106060.0,106050.0,1.21116758]
[1734387211832,0.0001726,106070.0,106060.0,0.65]
[1734387212018,0.0451202,106090.0,106080.0,0.15]
[1734387212197,0.04528045,106090.0,106080.0,1.62344658]
[1734387212418,0.04528045,106090.0,106080.0,1.62250422]
[1734387213093,0.00016025,106090.0,106080.0,1.62250422]
[1734387216645,0.00016025,106090.0,106080.0,1.63402429]
[1734387216805,0.00016025,106090.0,106080.0,1.71779595]
[1734387219280,0.00024655,106090.0,106080.0,1.84345345]
[1734387219450,0.00024655,106090.0,106080.0,2.01099678]
[1734387220664,0.00024655,106090.0,106080.0,2.03399678]
[1734387221072,0.00024655,106090.0,106080.0,1.86645345]
[1734387221268,0.00024655,106090.0,106080.0,2.03399678]
[1734387221495,0.00024655,106090.0,106080.0,1.95022512]
[1734387221850,0.0801726,106100.0,106090.0,0.023]
[1734387222040,0.0801726,106100.0,106090.0,1.09317509]
[1734387222216,0.0801726,106100.0,106090.0,1.17593309]
[1734387222424,0.0801726,106100.0,106090.0,1.0922327]
[1734387222611,0.0801726,106100.0,106090.0,1.1298777]
[1734387223413,0.0801726,106100.0,106090.0,1.26060351]
[1734387223630,0.0801726,106100.0,106090.0,1.23387809]
[1734387223824,0.0801726,106100.0,106090.0,1.21357809]
[1734387224044,0.0801726,106100.0,106090.0,1.1298777]
[1734387224267,0.0801726,106100.0,106090.0,1.2135657]
[1734387224518,0.0801726,106100.0,106090.0,0.94076561]
[1734387225275,0.0801726,106100.0,106090.0,0.95215778]
[1734387225554,0.0801726,106100.0,106090.0,0.96354995]
[1734387226124,0.0801726,106100.0,106090.0,0.95215778]
[1734387226352,0.0801726,106100.0,106090.0,0.96354995]
[1734387226591,0.0801726,106100.0,106090.0,0.94076561]
[1734387227798,0.0801726,106100.0,106090.0,0.11582361]
[1734387227998,0.0801726,106100.0,106090.0,0.94170799]
[1734387228265,0.0801726,106100.0,106090.0,0.94076561]
[1734387229447,0.0801726,106100.0,106090.0,0.98725989]
[1734387230023,0.0801726,106100.0,106090.0,0.96447555]
[1734387231271,0.0801726,106100.0,106090.0,0.96464815]
[1734387233042,0.0801726,106100.0,106090.0,1.55893885]
[1734387233242,0.0001726,106100.0,106090.0,1.55893885]
[1734387233942,0.0001726,106100.0,106090.0,1.64256318]